[Event "23rd ETCC Women 2021"]
[Site "Catez"]
[Date "2021.11.21"]
[Round "8.59"]
[White "Machlik, Edit"]
[Black "Bayat, Shohreh"]
[Result "1/2-1/2"]
[ECO "D36"]
[WhiteElo "2087"]
[BlackElo "2091"]
[Annotator "ChessBase"]
[PlyCount "89"]
[EventDate "2021.11.08"]
[EventType "team-tourn"]
[EventCountry "SLO"]
[SourceTitle "playchess.com"]
[Source "ChessBase"]
[SourceQuality "1"]
[WhiteTeam "Norway"]
[BlackTeam "England"]
[WhiteTeamCountry "NOR"]
[BlackTeamCountry "ENG"]
[TimeControl "40/5400+30:1800+30"]

1. d4 {[%emt 0:00:02]} e6 {[%emt 0:00:18]} 2. c4 {[%emt 0:00:08]} d5 {[%emt 0:
00:17]} 3. Nc3 {[%emt 0:00:14]} Nf6 {[%emt 0:01:35]} 4. cxd5 {[%emt 0:00:22]}
exd5 {[%emt 0:00:15]} 5. Bg5 {[%emt 0:00:13]} Be7 {[%emt 0:02:04]} 6. e3 {
[%emt 0:01:34]} Nbd7 {[%emt 0:03:23]} 7. Qc2 {[%emt 0:01:45]} h6 {[%emt 0:00:
40]} 8. Bh4 {[%emt 0:01:51]} c6 {[%emt 0:01:25]} 9. Bd3 {[%emt 0:00:00]} O-O {
[%emt 0:01:26]} 10. Nf3 {[%emt 0:00:00]} Re8 {[%emt 0:00:23]} 11. O-O {[%emt 0:
00:34]} Ne4 {[%emt 0:00:47]} 12. Bxe7 {[%emt 0:03:11]} Qxe7 {[%emt 0:00:03]}
13. Rab1 {[%emt 0:09:58]} Ndf6 {[%emt 0:03:47]} 14. b4 {[%emt 0:26:22]} Bf5 {
[%emt 0:05:11]} 15. Ne5 {[%emt 0:14:40]} Bh7 {[%emt 0:14:20]} 16. Rfc1 {
[%emt 0:07:34]} a6 {[%emt 0:00:59]} 17. Na4 {[%emt 0:01:32]} Nd6 {[%emt 0:04:
41]} 18. Bxh7+ {[%emt 0:02:02]} Nxh7 {[%emt 0:00:02]} 19. Nc5 {[%emt 0:03:29]}
Ng5 {[%emt 0:04:57]} 20. a4 {[%emt 0:01:00]} h5 {[%emt 0:00:52]} 21. Qe2 {
[%emt 0:03:36]} g6 {[%emt 0:01:27]} 22. Re1 {[%emt 0:06:39]} Kg7 {[%emt 0:03:
22]} 23. Rec1 {[%emt 0:03:59]} f6 {[%emt 0:09:47]} 24. Ned3 {[%emt 0:01:12]}
Nf5 {[%emt 0:03:33]} 25. Qc2 {[%emt 0:03:02]} h4 {[%emt 0:02:40]} 26. h3 {
[%emt 0:00:44]} Nd6 {[%emt 0:06:32]} 27. Nf4 {[%emt 0:00:42]} f5 {[%emt 0:02:
36]} 28. Re1 {[%emt 0:04:00]} Rab8 {[%emt 0:03:49]} 29. Nfd3 {[%emt 0:01:10]}
Ngf7 {[%emt 0:05:22]} 30. Qe2 {[%emt 0:03:18]} Ne4 {[%emt 0:01:23]} 31. Nxe4 {
[%emt 0:00:24]} fxe4 {[%emt 0:00:37]} 32. Nc5 {[%emt 0:00:18]} Nd6 {[%emt 0:05:
16]} 33. Qg4 {[%emt 0:00:13]} Rbd8 {[%emt 0:06:02]} 34. Rec1 {[%emt 0:00:43]}
Kh6 {[%emt 0:01:41]} 35. Rb2 {[%emt 0:00:19]} Qg5 {[%emt 0:00:37]} 36. Qxg5+ {
[%emt 0:00:09]} Kxg5 {[%emt 0:00:02]} 37. Rb3 {[%emt 0:00:30]} Re7 {[%emt 0:00:
28]} 38. Rc2 {[%emt 0:01:18]} Rf8 {[%emt 0:00:24]} 39. Re2 {[%emt 0:00:17]} Rf6
{[%emt 0:00:47]} 40. Rb1 {[%emt 0:00:14]} Kh5 {[%emt 0:01:26]} 41. Nb3 {
[%emt 0:06:20]} g5 {[%emt 0:00:25]} 42. Nd2 {[%emt 0:00:50]} Ref7 {[%emt 0:05:
49]} 43. Nf1 {[%emt 0:02:19]} g4 {[%emt 0:06:35]} 44. hxg4+ {[%emt 0:03:22]}
Kxg4 {[%emt 0:00:01]} 45. Nh2+ {[%emt 0:05:23]} 1/2-1/2

[Event "23rd ETCC Women 2021"]
[Site "Catez"]
[Date "2021.11.21"]
[Round "8.60"]
[White "Varney, Zoe"]
[Black "Rodsmoen, Maud"]
[Result "1-0"]
[ECO "B30"]
[WhiteElo "1955"]
[BlackElo "1953"]
[Annotator "ChessBase"]
[PlyCount "93"]
[EventDate "2021.11.08"]
[EventType "team-tourn"]
[EventCountry "SLO"]
[SourceTitle "playchess.com"]
[Source "ChessBase"]
[SourceQuality "1"]
[WhiteTeam "England"]
[BlackTeam "Norway"]
[WhiteTeamCountry "ENG"]
[BlackTeamCountry "NOR"]
[TimeControl "40/5400+30:1800+30"]

1. e4 {[%emt 0:00:03]} c5 {[%emt 0:00:05]} 2. Nf3 {[%emt 0:00:04]} e6 {[%emt 0:
00:06]} 3. d3 {[%emt 0:00:04]} Qc7 {[%emt 0:01:54]} 4. g3 {[%emt 0:00:49]} Nc6
{[%emt 0:02:01]} 5. Bg2 {[%emt 0:01:57]} Nf6 {[%emt 0:02:15]} 6. O-O {[%emt 0:
03:06]} Be7 {[%emt 0:02:10]} 7. Re1 {[%emt 0:00:00]} d6 {[%emt 0:03:19]} 8.
Nbd2 {[%emt 0:00:00]} O-O {[%emt 0:02:45]} 9. Nf1 {[%emt 0:01:42]} h6 {[%emt 0:
08:24]} 10. Ne3 {[%emt 0:09:45]} d5 {[%emt 0:05:45]} 11. e5 {[%emt 0:13:25]}
Nd7 {[%emt 0:08:58]} 12. Ng4 {[%emt 0:04:27]} h5 {[%emt 0:08:22]} 13. Ne3 {
[%emt 0:15:21]} Ndxe5 {[%emt 0:16:24]} 14. Nxe5 {[%emt 0:00:00]} Nxe5 {[%emt 0:
00:21]} 15. Qxh5 {[%emt 0:00:00]} Ng6 {[%emt 0:01:44]} 16. f4 {[%emt 0:00:00]}
Rd8 {[%emt 0:08:46]} 17. f5 {[%emt 0:04:51]} exf5 {[%emt 0:00:45]} 18. Nxf5 {
[%emt 0:11:34]} Bxf5 {[%emt 0:01:34]} 19. Qxf5 {[%emt 0:00:12]} Bf6 {[%emt 0:
01:17]} 20. c3 {[%emt 0:07:38]} Rac8 {[%emt 0:05:06]} 21. Qh5 {[%emt 0:04:11]}
Qd6 {[%emt 0:01:37]} 22. Bh3 {[%emt 0:01:46]} Rc6 {[%emt 0:02:24]} 23. Bf5 {
[%emt 0:00:49]} Rb6 {[%emt 0:07:59]} 24. Bf4 {[%emt 0:04:30]} Qc6 {[%emt 0:00:
29]} 25. Re2 {[%emt 0:00:31]} Nf8 {[%emt 0:01:56]} 26. Qh3 {[%emt 0:02:24]} g6
{[%emt 0:03:13]} 27. Bg4 {[%emt 0:00:05]} Re8 {[%emt 0:00:35]} 28. Rf2 {
[%emt 0:02:48]} Bg7 {[%emt 0:01:45]} 29. Raf1 {[%emt 0:00:34]} f5 {[%emt 0:01:
19]} 30. Bf3 {[%emt 0:01:01]} Qd7 {[%emt 0:00:47]} 31. g4 {[%emt 0:02:32]} Ne6
{[%emt 0:00:30]} 32. Bc1 {[%emt 0:01:31]} f4 {[%emt 0:00:36]} 33. Qg2 {[%emt 0:
02:11]} d4 {[%emt 0:00:43]} 34. c4 {[%emt 0:00:11]} g5 {[%emt 0:00:43]} 35. Bd5
{[%emt 0:00:52]} Kf8 {[%emt 0:00:36]} 36. h4 {[%emt 0:00:57]} gxh4 {[%emt 0:00:
34]} 37. Bxf4 {[%emt 0:00:33]} Nxf4 {[%emt 0:00:35]} 38. Rxf4+ {[%emt 0:00:11]}
Bf6 {[%emt 0:00:25]} 39. Rxf6+ {[%emt 0:00:36]} Rxf6 {[%emt 0:00:07]} 40. Rxf6+
{[%emt 0:00:04]} Kg7 {[%emt 0:00:31]} 41. Rf7+ {[%emt 0:31:35]} Qxf7 {[%emt 0:
30:11]} 42. Bxf7 {[%emt 0:00:05]} Kxf7 {[%emt 0:00:00]} 43. Qd5+ {[%emt 0:00:
00]} Kf6 {[%emt 0:00:00]} 44. Qf5+ {[%emt 0:00:00]} Kg7 {[%emt 0:00:00]} 45.
Qg5+ {[%emt 0:00:00]} Kf7 {[%emt 0:00:00]} 46. Qh5+ {[%emt 0:00:00]} Kf8 {
[%emt 0:00:00]} 47. Qxc5+ {[%emt 0:00:00]} 1-0

[Event "23rd ETCC Women 2021"]
[Site "Catez"]
[Date "2021.11.21"]
[Round "9.1"]
[White "Lagno, Kateryna"]
[Black "Zawadzka, Jolanta"]
[Result "1-0"]
[ECO "C56"]
[WhiteElo "2550"]
[BlackElo "2429"]
[Annotator "ChessBase"]
[PlyCount "53"]
[EventDate "2021.11.08"]
[EventType "team-tourn"]
[EventCountry "SLO"]
[SourceTitle "playchess.com"]
[Source "ChessBase"]
[SourceQuality "1"]
[WhiteTeam "Russia"]
[BlackTeam "Poland"]
[WhiteTeamCountry "RUS"]
[BlackTeamCountry "POL"]
[TimeControl "40/5400+30:1800+30"]

1. e4 {[%emt 0:00:02]} e5 {[%emt 0:00:06]} 2. Nf3 {[%emt 0:00:08]} Nc6 {
[%emt 0:00:05]} 3. Bc4 {[%emt 0:00:12]} Nf6 {[%emt 0:00:16]} 4. d4 {[%emt 0:00:
27]} exd4 {[%emt 0:00:30]} 5. e5 {[%emt 0:00:13]} d5 {[%emt 0:00:46]} 6. Bb5 {
[%emt 0:00:16]} Ne4 {[%emt 0:00:06]} 7. Nxd4 {[%emt 0:00:12]} Bc5 {[%emt 0:00:
39]} 8. Be3 {[%emt 0:00:23]} O-O {[%emt 0:02:57]} 9. Nxc6 {[%emt 0:00:33]} bxc6
{[%emt 0:00:05]} 10. Bxc5 {[%emt 0:00:05]} Nxc5 {[%emt 0:01:34]} 11. Bxc6 {
[%emt 0:00:47]} Rb8 {[%emt 0:01:30]} 12. Qxd5 {[%emt 0:00:13]} Qe7 {[%emt 0:00:
43]} 13. O-O {[%emt 0:00:16]} Rxb2 {[%emt 0:02:53]} 14. Nc3 {[%emt 0:00:49]}
Rxc2 {[%emt 0:17:40]} 15. Qd4 {[%emt 0:01:04]} Be6 {[%emt 0:17:04]} 16. Nd5 {
[%emt 0:32:55]} Bxd5 {[%emt 0:01:57]} 17. Bxd5 {[%emt 0:00:06]} c6 {[%emt 0:11:
51]} 18. Bxc6 {[%emt 0:11:41]} Ne6 {[%emt 0:00:44]} 19. Qe4 {[%emt 0:01:32]}
Qc5 {[%emt 0:00:13]} 20. Bd5 {[%emt 0:05:03]} Ng5 {[%emt 0:05:55]} 21. Qd3 {
[%emt 0:11:41]} Rd8 {[%emt 0:03:01]} 22. Rad1 {[%emt 0:00:28]} Kf8 {[%emt 0:04:
45]} 23. Qf5 {[%emt 0:11:27]} g6 {[%emt 0:07:27]} 24. Qxg5 {[%emt 0:00:06]}
Rxd5 {[%emt 0:00:03]} 25. Rb1 {[%emt 0:01:57]} Qc7 {[%emt 0:07:15]} 26. Qf6 {
[%emt 0:00:17]} Rc6 {[%emt 0:02:50]} 27. Rb8+ {[%emt 0:00:25]} 1-0

[Event "23rd ETCC Women 2021"]
[Site "Catez"]
[Date "2021.11.21"]
[Round "9.2"]
[White "Cyfka, Karina"]
[Black "Gunina, Valentina"]
[Result "1-0"]
[ECO "D17"]
[WhiteElo "2416"]
[BlackElo "2480"]
[Annotator "ChessBase"]
[PlyCount "171"]
[EventDate "2021.11.08"]
[EventType "team-tourn"]
[EventCountry "SLO"]
[SourceTitle "playchess.com"]
[Source "ChessBase"]
[SourceQuality "1"]
[WhiteTeam "Poland"]
[BlackTeam "Russia"]
[WhiteTeamCountry "POL"]
[BlackTeamCountry "RUS"]
[TimeControl "40/5400+30:1800+30"]

1. d4 {[%emt 0:00:04]} d5 {[%emt 0:00:06]} 2. c4 {[%emt 0:00:07]} c6 {[%emt 0:
00:04]} 3. Nf3 {[%emt 0:00:21]} Nf6 {[%emt 0:00:06]} 4. Nc3 {[%emt 0:00:28]}
dxc4 {[%emt 0:00:17]} 5. a4 {[%emt 0:00:46]} Bf5 {[%emt 0:00:20]} 6. Ne5 {
[%emt 0:00:47]} Nbd7 {[%emt 0:00:06]} 7. Nxc4 {[%emt 0:00:22]} Nb6 {[%emt 0:00:
06]} 8. Ne5 {[%emt 0:00:44]} a5 {[%emt 0:00:25]} 9. h4 {[%emt 0:00:41]} e6 {
[%emt 0:00:18]} 10. f3 {[%emt 0:01:42]} h6 {[%emt 0:00:04]} 11. e4 {[%emt 0:01:
00]} Bh7 {[%emt 0:00:05]} 12. Be3 {[%emt 0:01:35]} Nfd7 {[%emt 0:00:06]} 13.
Nd3 {[%emt 0:03:14]} Bd6 {[%emt 0:01:12]} 14. Ne2 {[%emt 0:06:11]} Nc4 {
[%emt 0:01:11]} 15. Bc1 {[%emt 0:04:24]} Be7 {[%emt 0:06:50]} 16. g3 {[%emt 0:
07:08]} O-O {[%emt 0:00:35]} 17. b3 {[%emt 0:09:10]} Nd6 {[%emt 0:00:29]} 18.
Be3 {[%emt 0:01:29]} b5 {[%emt 0:00:37]} 19. Bg2 {[%emt 0:03:01]} bxa4 {
[%emt 0:09:59]} 20. bxa4 {[%emt 0:01:27]} Nc4 {[%emt 0:05:33]} 21. Bf2 {
[%emt 0:00:52]} Bb4+ {[%emt 0:02:33]} 22. Nxb4 {[%emt 0:09:50]} axb4 {[%emt 0:
00:16]} 23. Qb3 {[%emt 0:06:12]} Na3 {[%emt 0:00:41]} 24. O-O {[%emt 0:00:09]}
Qa5 {[%emt 0:00:05]} 25. Be1 {[%emt 0:00:32]} Qxa4 {[%emt 0:08:59]} 26. Qxb4 {
[%emt 0:01:32]} Qa6 {[%emt 0:03:14]} 27. Qb2 {[%emt 0:04:07]} Rfb8 {[%emt 0:06:
15]} 28. Bb4 {[%emt 0:02:00]} Nc4 {[%emt 0:06:40]} 29. Rxa6 {[%emt 0:06:28]}
Nxb2 {[%emt 0:00:17]} 30. Rxa8 {[%emt 0:00:08]} Rxa8 {[%emt 0:00:02]} 31. Rb1 {
[%emt 0:03:03]} Nc4 {[%emt 0:03:00]} 32. Rc1 {[%emt 0:00:35]} Ne3 {[%emt 0:00:
34]} 33. Bh3 {[%emt 0:06:10]} Ra2 {[%emt 0:01:21]} 34. Kf2 {[%emt 0:02:08]} Nc2
{[%emt 0:00:52]} 35. Bc3 {[%emt 0:00:05]} Nf6 {[%emt 0:06:59]} 36. Bf1 {
[%emt 0:03:28]} Bg6 {[%emt 0:02:26]} 37. g4 {[%emt 0:03:33]} h5 {[%emt 0:01:26]
} 38. g5 {[%emt 0:00:15]} Ne8 {[%emt 0:06:46]} 39. Nf4 {[%emt 0:01:53]} Nxd4+ {
[%emt 0:05:45]} 40. Kg3 {[%emt 0:00:07]} Rc2 {[%emt 0:02:50]} 41. Rxc2 {
[%emt 0:36:41]} Nxc2 {[%emt 0:30:35]} 42. Bh3 {[%emt 0:04:19]} Kh7 {[%emt 0:02:
41]} 43. Nd3 {[%emt 0:00:00]} Nd6 {[%emt 0:00:00]} 44. Kf4 {[%emt 0:00:00]} Nb5
{[%emt 0:00:00]} 45. Bb2 {[%emt 0:00:00]} Nbd4 {[%emt 0:00:00]} 46. Bxd4 {
[%emt 0:00:00]} Nxd4 {[%emt 0:00:00]} 47. Ke3 {[%emt 0:00:00]} Nc2+ {[%emt 0:
00:00]} 48. Kd2 {[%emt 0:00:00]} Nd4 {[%emt 0:00:00]} 49. Ke3 {[%emt 0:00:00]}
Nc2+ {[%emt 0:00:00]} 50. Kf2 {[%emt 0:00:00]} Nd4 {[%emt 0:00:00]} 51. Nc5 {
[%emt 0:00:00]} Nb5 {[%emt 0:00:00]} 52. Ke3 {[%emt 0:00:00]} Kg8 {[%emt 0:00:
00]} 53. Nd7 {[%emt 0:00:00]} Bh7 {[%emt 0:00:00]} 54. Bf1 {[%emt 0:00:00]} Nd6
{[%emt 0:00:00]} 55. Kd4 {[%emt 0:00:00]} Nc8 {[%emt 0:00:00]} 56. Bc4 {
[%emt 0:00:00]} Ne7 {[%emt 0:00:00]} 57. Ne5 {[%emt 0:00:00]} Kf8 {[%emt 0:00:
00]} 58. Kc5 {[%emt 0:00:00]} Ke8 {[%emt 0:00:00]} 59. Kd6 {[%emt 0:00:00]} Bg8
{[%emt 0:00:00]} 60. Be2 {[%emt 0:00:35]} Bh7 {[%emt 0:01:10]} 61. Bd1 {
[%emt 0:00:31]} f6 {[%emt 0:04:50]} 62. gxf6 {[%emt 0:00:53]} gxf6 {[%emt 0:00:
01]} 63. Nd7 {[%emt 0:02:34]} Kf7 {[%emt 0:00:15]} 64. Bb3 {[%emt 0:02:15]}
Nc8+ {[%emt 0:00:51]} 65. Kxc6 {[%emt 0:02:16]} Ke7 {[%emt 0:00:14]} 66. Nc5 {
[%emt 0:00:45]} Na7+ {[%emt 0:03:26]} 67. Kb6 {[%emt 0:00:33]} Nc8+ {[%emt 0:
00:04]} 68. Kc7 {[%emt 0:00:09]} Nd6 {[%emt 0:00:07]} 69. Kc6 {[%emt 0:01:38]}
Bg8 {[%emt 0:00:14]} 70. Nd3 {[%emt 0:01:07]} Bf7 {[%emt 0:00:35]} 71. Nf4 {
[%emt 0:00:32]} Be8+ {[%emt 0:00:07]} 72. Kc5 {[%emt 0:00:26]} Bf7 {[%emt 0:00:
11]} 73. Ba2 {[%emt 0:00:35]} Nb7+ {[%emt 0:00:06]} 74. Kc6 {[%emt 0:00:15]}
Nd6 {[%emt 0:00:09]} 75. Bxe6 {[%emt 0:00:51]} Bxe6 {[%emt 0:02:54]} 76. Ng6+ {
[%emt 0:00:06]} Kf7 {[%emt 0:00:07]} 77. Kxd6 {[%emt 0:00:11]} Bb3 {[%emt 0:00:
06]} 78. Ne7 {[%emt 0:00:48]} Bc2 {[%emt 0:01:35]} 79. Nf5 {[%emt 0:00:22]} Bd3
{[%emt 0:00:51]} 80. Ng3 {[%emt 0:00:16]} Kg6 {[%emt 0:00:24]} 81. Kd5 {
[%emt 0:00:45]} Bc2 {[%emt 0:01:15]} 82. f4 {[%emt 0:00:14]} Bd1 {[%emt 0:02:
42]} 83. Ke6 {[%emt 0:00:28]} Bb3+ {[%emt 0:00:35]} 84. Ke7 {[%emt 0:00:46]}
Bd1 {[%emt 0:02:15]} 85. f5+ {[%emt 0:00:35]} Kg7 {[%emt 0:00:04]} 86. e5 {
[%emt 0:00:08]} 1-0

[Event "23rd ETCC Women 2021"]
[Site "Catez"]
[Date "2021.11.21"]
[Round "9.3"]
[White "Shuvalova, Polina"]
[Black "Kiolbasa, Oliwia"]
[Result "1/2-1/2"]
[ECO "C83"]
[WhiteElo "2515"]
[BlackElo "2403"]
[Annotator "ChessBase"]
[PlyCount "80"]
[EventDate "2021.11.08"]
[EventType "team-tourn"]
[EventCountry "SLO"]
[SourceTitle "playchess.com"]
[Source "ChessBase"]
[SourceQuality "1"]
[WhiteTeam "Russia"]
[BlackTeam "Poland"]
[WhiteTeamCountry "RUS"]
[BlackTeamCountry "POL"]
[TimeControl "40/5400+30:1800+30"]

1. e4 {[%emt 0:00:03]} e5 {[%emt 0:00:10]} 2. Nf3 {[%emt 0:00:03]} Nc6 {
[%emt 0:00:09]} 3. Bb5 {[%emt 0:00:04]} a6 {[%emt 0:00:12]} 4. Ba4 {[%emt 0:00:
04]} Nf6 {[%emt 0:00:11]} 5. O-O {[%emt 0:00:04]} Nxe4 {[%emt 0:00:47]} 6. d4 {
[%emt 0:00:07]} b5 {[%emt 0:00:15]} 7. Bb3 {[%emt 0:00:04]} d5 {[%emt 0:00:20]}
8. dxe5 {[%emt 0:00:05]} Be6 {[%emt 0:00:12]} 9. Be3 {[%emt 0:00:21]} Be7 {
[%emt 0:01:20]} 10. c3 {[%emt 0:05:18]} Qd7 {[%emt 0:00:36]} 11. Nbd2 {[%emt 0:
00:56]} Rd8 {[%emt 0:00:43]} 12. h3 {[%emt 0:06:21]} O-O {[%emt 0:04:46]} 13.
Bc2 {[%emt 0:02:35]} Bf5 {[%emt 0:01:21]} 14. Re1 {[%emt 0:18:18]} Nxd2 {
[%emt 0:10:08]} 15. Qxd2 {[%emt 0:01:09]} Bxc2 {[%emt 0:16:28]} 16. Qxc2 {
[%emt 0:00:05]} f6 {[%emt 0:01:03]} 17. exf6 {[%emt 0:02:58]} Bxf6 {[%emt 0:00:
39]} 18. Bc5 {[%emt 0:11:15]} Rfe8 {[%emt 0:02:20]} 19. Bd4 {[%emt 0:00:32]}
Qd6 {[%emt 0:14:56]} 20. Re2 {[%emt 0:04:09]} Rxe2 {[%emt 0:09:51]} 21. Qxe2 {
[%emt 0:00:05]} Nxd4 {[%emt 0:00:05]} 22. cxd4 {[%emt 0:00:50]} c5 {[%emt 0:00:
49]} 23. dxc5 {[%emt 0:02:38]} Qxc5 {[%emt 0:00:51]} 24. Rd1 {[%emt 0:04:12]}
Kf8 {[%emt 0:17:33]} 25. b3 {[%emt 0:01:38]} Qe7 {[%emt 0:02:10]} 26. Qc2 {
[%emt 0:03:23]} Kg8 {[%emt 0:00:06]} 27. g3 {[%emt 0:03:45]} Qe6 {[%emt 0:00:
59]} 28. h4 {[%emt 0:01:36]} Rc8 {[%emt 0:03:24]} 29. Qd2 {[%emt 0:02:58]} Rd8
{[%emt 0:00:36]} 30. Qf4 {[%emt 0:00:52]} d4 {[%emt 0:02:35]} 31. Rd3 {[%emt 0:
02:17]} Qd5 {[%emt 0:00:40]} 32. g4 {[%emt 0:08:31]} Re8 {[%emt 0:01:26]} 33.
g5 {[%emt 0:02:51]} Re4 {[%emt 0:00:34]} 34. Qb8+ {[%emt 0:03:46]} Bd8 {
[%emt 0:00:08]} 35. Kf1 {[%emt 0:03:03]} Qd7 {[%emt 0:02:17]} 36. Ne5 {[%emt 0:
02:50]} Qe8 {[%emt 0:00:07]} 37. Nf3 {[%emt 0:00:25]} Qd7 {[%emt 0:01:17]} 38.
Ne5 {[%emt 0:00:06]} Qd5 {[%emt 0:06:17]} 39. Nf3 {[%emt 0:00:05]} Qd7 {
[%emt 0:00:59]} 40. Ne5 {[%emt 0:01:18]} Qd5 {[%emt 0:00:17]} 1/2-1/2

[Event "23rd ETCC Women 2021"]
[Site "Catez"]
[Date "2021.11.21"]
[Round "9.4"]
[White "Socko, Monika"]
[Black "Kashlinskaya, Alina"]
[Result "0-1"]
[ECO "E60"]
[WhiteElo "2393"]
[BlackElo "2482"]
[Annotator "ChessBase"]
[PlyCount "98"]
[EventDate "2021.11.08"]
[EventType "team-tourn"]
[EventCountry "SLO"]
[SourceTitle "playchess.com"]
[Source "ChessBase"]
[SourceQuality "1"]
[WhiteTeam "Poland"]
[BlackTeam "Russia"]
[WhiteTeamCountry "POL"]
[BlackTeamCountry "RUS"]
[TimeControl "40/5400+30:1800+30"]

1. d4 {[%emt 0:00:02]} Nf6 {[%emt 0:00:12]} 2. c4 {[%emt 0:00:05]} g6 {[%emt 0:
00:04]} 3. Nf3 {[%emt 0:00:05]} Bg7 {[%emt 0:00:10]} 4. g3 {[%emt 0:00:10]} c5
{[%emt 0:00:20]} 5. Bg2 {[%emt 0:00:30]} cxd4 {[%emt 0:00:19]} 6. Qxd4 {
[%emt 0:01:14]} Nc6 {[%emt 0:00:17]} 7. Qh4 {[%emt 0:06:25]} h6 {[%emt 0:00:23]
} 8. Qf4 {[%emt 0:00:49]} d5 {[%emt 0:13:55]} 9. cxd5 {[%emt 0:02:59]} Nxd5 {
[%emt 0:01:27]} 10. Qd2 {[%emt 0:00:35]} O-O {[%emt 0:01:09]} 11. O-O {[%emt 0:
00:05]} Be6 {[%emt 0:03:40]} 12. Nc3 {[%emt 0:25:07]} Nxc3 {[%emt 0:24:48]} 13.
bxc3 {[%emt 0:00:08]} Rc8 {[%emt 0:01:04]} 14. Qe3 {[%emt 0:16:22]} Qa5 {
[%emt 0:02:27]} 15. Bd2 {[%emt 0:06:22]} Qa4 {[%emt 0:05:58]} 16. Rfc1 {
[%emt 0:09:54]} Rfd8 {[%emt 0:00:54]} 17. Be1 {[%emt 0:05:00]} b6 {[%emt 0:04:
47]} 18. Nd2 {[%emt 0:03:52]} Ne5 {[%emt 0:05:36]} 19. h3 {[%emt 0:02:26]} Bd5
{[%emt 0:09:31]} 20. Bxd5 {[%emt 0:05:02]} Rxd5 {[%emt 0:00:04]} 21. Nf3 {
[%emt 0:01:09]} Qd7 {[%emt 0:03:25]} 22. Kh2 {[%emt 0:01:08]} Nxf3+ {[%emt 0:
00:54]} 23. Qxf3 {[%emt 0:00:12]} h5 {[%emt 0:02:20]} 24. Rab1 {[%emt 0:01:11]}
Rc4 {[%emt 0:00:43]} 25. Rb4 {[%emt 0:01:25]} Qc6 {[%emt 0:07:03]} 26. Rcb1 {
[%emt 0:00:30]} Bf6 {[%emt 0:00:38]} 27. e3 {[%emt 0:01:57]} Kg7 {[%emt 0:02:
10]} 28. Qe2 {[%emt 0:00:33]} Rdc5 {[%emt 0:01:47]} 29. Rxc4 {[%emt 0:00:57]}
Rxc4 {[%emt 0:00:02]} 30. Rb4 {[%emt 0:00:05]} Rc5 {[%emt 0:01:57]} 31. Rb3 {
[%emt 0:03:02]} Kg8 {[%emt 0:02:17]} 32. Qd1 {[%emt 0:02:13]} Qe4 {[%emt 0:01:
46]} 33. Rb4 {[%emt 0:00:19]} Qe6 {[%emt 0:00:08]} 34. Ra4 {[%emt 0:00:47]} a5
{[%emt 0:00:50]} 35. Rf4 {[%emt 0:01:53]} h4 {[%emt 0:00:53]} 36. Qd3 {[%emt 0:
01:01]} hxg3+ {[%emt 0:00:10]} 37. fxg3 {[%emt 0:00:51]} Qxa2+ {[%emt 0:00:15]}
38. Rf2 {[%emt 0:00:01]} Qd5 {[%emt 0:00:40]} 39. Qa6 {[%emt 0:01:02]} Qd1 {
[%emt 0:03:05]} 40. Rf1 {[%emt 0:02:11]} Qc2+ {[%emt 0:01:43]} 41. Rf2 {
[%emt 0:30:10]} Qb1 {[%emt 0:05:06]} 42. Rf1 {[%emt 0:00:00]} Kg7 {[%emt 0:00:
41]} 43. Qe2 {[%emt 0:00:00]} Qb5 {[%emt 0:01:59]} 44. Qg2 {[%emt 0:00:00]} Qd3
{[%emt 0:04:04]} 45. e4 {[%emt 0:00:00]} a4 {[%emt 0:01:10]} 46. Rf4 {[%emt 0:
00:00]} a3 {[%emt 0:01:16]} 47. h4 {[%emt 0:00:00]} Rb5 {[%emt 0:01:22]} 48.
Rf2 {[%emt 0:00:00]} Rb1 {[%emt 0:00:47]} 49. Rd2 {[%emt 0:00:00]} Qc4 {
[%emt 0:00:57]} 0-1